fUSD/lending_fUSD_20260128
["ID","MTS","AMOUNT","RATE_DAILY","PERIOD"]
[403863295,1769607059216,-150.0,0.00042503,14]
[403863296,1769607059226,-1000.0,0.00042513,14]
[403863297,1769607059236,-1000.0,0.00042519,14]
[403863298,1769607059246,-1000.0,0.00042534,14]
[403863299,1769607059255,-1000.0,0.00042537,14]
[403863300,1769607059265,-1000.0,0.0004255,14]
[403863301,1769607059275,-1000.0,0.00042551,14]
[403863302,1769607059285,-837.0,0.00042554,16]
[403863303,1769607059296,-1000.0,0.00042557,14]
[403863304,1769607059306,-1000.0,0.00042564,14]
[403863305,1769607059317,-1000.0,0.00042566,14]
[403863306,1769607059327,-500.0,0.00042575,120]
[403863307,1769607059339,-1000.0,0.00042577,14]
[403863308,1769607059350,-1000.0,0.00042589,14]
[403863309,1769607059361,-2303.17,0.000426,14]
[403863310,1769607059371,-150.0,0.00042601,14]
[403863311,1769607059382,-559.17,0.00042603,30]
[403863312,1769607059393,-348.83,0.00042603,30]
[403863313,1769607059403,-468.96,0.00042603,30]
[403863314,1769607059413,-468.96,0.00042603,30]
[403863315,1769607059424,-559.17,0.00042603,30]
[403863316,1769607059435,-559.17,0.00042603,30]
[403863317,1769607059445,-214.4,0.00042603,30]
[403863318,1769607059456,-559.17,0.00042603,30]
[403863319,1769607059466,-559.17,0.00042603,30]
[403863320,1769607059477,-735.36,0.00042603,30]
[403863321,1769607059487,-300.0,0.00042603,30]
[403863322,1769607059497,-2520.98,0.00042603,30]
[403863323,1769607059508,-300.3,0.00042603,30]
[403863324,1769607059520,-172.31,0.00042603,30]
[403863325,1769607059531,-150.0,0.00042603,30]
[403863326,1769607059541,-176.73,0.00042603,30]
[403863327,1769607059553,-150.0,0.00042603,30]
[403863328,1769607059565,-559.17,0.00042603,30]
[403863329,1769607059576,-180.06,0.00042603,30]
[403863330,1769607059588,-172.31,0.00042603,30]
[403863331,1769607059599,-468.96,0.00042603,30]
[403863332,1769607059611,-180.06,0.00042603,30]
[403863333,1769607059622,-172.31,0.00042603,30]
[403863334,1769607059636,-150.0,0.00042603,30]
[403863335,1769607059647,-559.17,0.00042603,30]
[403863336,1769607059658,-468.96,0.00042603,30]
[403863337,1769607059668,-150.0,0.00042603,30]
[403863338,1769607059680,-559.17,0.00042603,30]
[403863339,1769607059690,-172.31,0.00042603,30]
[403863340,1769607059701,-150.0,0.00042603,30]
[403863341,1769607059713,-468.96,0.00042603,30]
[403863342,1769607059724,-180.06,0.00042603,30]
[403863343,1769607059735,-180.06,0.00042603,30]
[403863344,1769607059746,-559.17,0.00042603,30]
[403863345,1769607059757,-172.31,0.00042603,30]
[403863346,1769607059768,-150.0,0.00042603,30]
[403863347,1769607059778,-468.96,0.00042603,30]
[403863348,1769607059792,-2295.62541394,0.00042623,30]
[403863349,1769607059804,-1000.0,0.0004264,14]
[403863350,1769607059816,-1000.0,0.00042646,14]
[403863351,1769607059827,-700.0,0.00042651,60]
[403863352,1769607059842,-1000.0,0.00042651,14]
[403863353,1769607059854,-1000.0,0.00042656,14]
[403863354,1769607059868,-150.0,0.00042667,14]
[403863355,1769607059879,-150.0,0.0004267,14]
[403863356,1769607059890,-150.0,0.00042671,14]
[403863357,1769607059902,-1000.0,0.00042676,14]
[403863358,1769607059915,-1000.0,0.00042686,14]
[403863359,1769607059925,-150.0,0.00042693,14]
[403863360,1769607059935,-150.0,0.00042696,14]
[403863361,1769607059945,-300.0,0.000427,15]
[403863362,1769607059957,-1000.0,0.00042705,14]
[403863363,1769607059967,-837.0,0.00042708,16]
[403863364,1769607059978,-2831.0,0.00042708,16]
[403863365,1769607059990,-500.0,0.00042712,120]
[403863366,1769607060003,-1000.0,0.00042713,14]
[403863367,1769607060014,-1000.0,0.00042722,14]
[403863368,1769607060025,-1000.0,0.00042733,14]
[403863369,1769607060036,-150.0,0.00042739,14]
[403863370,1769607060046,-1000.0,0.00042743,14]
[403863371,1769607060059,-1000.0,0.00042744,14]
[403863372,1769607060072,-837.0,0.00042749,16]
[403863373,1769607060083,-1000.0,0.00042757,14]
[403863374,1769607060095,-1000.0,0.00042757,14]
[403863375,1769607060106,-151.0,0.00042767,120]
[403863376,1769607060116,-151.0,0.00042767,120]
[403863377,1769607060127,-109548.7885988,0.0004277,2]
[403863378,1769607060137,-1757.66145,0.0004277,120]
[403863379,1769607060147,-1757.66145,0.0004277,120]
[403863380,1769607060159,-1757.66145,0.0004277,120]
[403863381,1769607060170,-1757.66145,0.0004277,120]
[403863382,1769607060186,-1757.66145,0.0004277,120]
[403863383,1769607060226,-1000.0,0.00042787,14]
[403863384,1769607060251,-150.0,0.00042796,14]
[403863385,1769607060270,-1000.0,0.00042798,14]
[403863386,1769607060285,-979.0,0.000428,15]
[403863387,1769607060296,-150.0,0.00042811,14]
[403863388,1769607060308,-1000.0,0.00042813,14]
[403863389,1769607060319,-1000.0,0.00042832,14]
[403863390,1769607060331,-150.0,0.00042835,14]
[403863391,1769607060341,-1000.0,0.00042836,14]
[403863392,1769607060352,-1000.0,0.00042841,14]
[403863393,1769607060363,-1000.0,0.00042846,14]
[403863394,1769607060375,-563.50528508,0.00042849,120]
[403863395,1769607060386,-150.0,0.00042877,30]
[403863396,1769607060396,-150.0,0.00042877,30]
[403863397,1769607060408,-1000.0,0.00042877,14]
[403863398,1769607060418,-2831.0,0.00042878,16]
[403863399,1769607060430,-1000.0,0.00042897,14]
[403863400,1769607060440,-150.0,0.00042903,14]
[403863401,1769607060452,-1000.0,0.00042918,14]
[403863402,1769607060463,-2831.0,0.00042919,16]
[403863403,1769607060475,-1000.0,0.00042921,14]
[403863404,1769607060486,-1000.0,0.00042924,14]
[403863405,1769607060497,-1000.0,0.00042942,14]
[403863406,1769607060508,-1000.0,0.00042947,14]
[403863407,1769607060518,-1000.0,0.00042948,14]
[403863408,1769607060530,-1000.0,0.00042977,14]
[403863409,1769607060541,-2602.30488931,0.00042978,120]
[403863410,1769607060551,-150.0,0.00042978,14]
[403863411,1769607060561,-2000.0,0.00042983,3]
[403863412,1769607060572,-1000.0,0.00042987,14]
[403863413,1769607060583,-1000.0,0.00042988,14]
[403863414,1769607060593,-4132.54122653,0.00043,120]
[403863415,1769607060604,-500.0,0.00043,120]
[403863416,1769607060615,-500.0,0.00043,99]
[403863417,1769607060626,-500.0,0.00043,99]
[403863418,1769607060637,-500.0,0.00043,99]
[403863419,1769607060647,-500.0,0.00043,120]
[403863420,1769607060657,-1000.0,0.00043001,14]
[403863421,1769607060669,-387.0,0.00043008,2]
[403863422,1769607060680,-387.0,0.00043013,2]
[403863423,1769607060690,-152.0,0.00043014,5]
[403863424,1769607060701,-1000.0,0.00043021,14]
[403863425,1769607060711,-1000.0,0.00043021,14]
[403863426,1769607060723,-1000.0,0.00043022,14]
[403863427,1769607060733,-1000.0,0.00043026,14]
[403863428,1769607060744,-150.0,0.00043045,14]
[403863429,1769607060755,-1000.0,0.00043051,14]
[403863430,1769607060767,-1000.0,0.00043072,14]
[403863431,1769607060778,-1000.0,0.00043078,14]
[403863432,1769607060789,-1000.0,0.00043082,14]
[403863433,1769607060800,-1000.0,0.00043082,14]
[403863434,1769607060811,-1000.0,0.00043094,14]
[403863435,1769607060822,-1000.0,0.00043094,14]
[403863436,1769607060834,-1000.0,0.00043096,14]
[403863437,1769607060844,-14750.0,0.00043096,7]
[403863438,1769607060856,-458.95,0.000431,60]
[403863439,1769607060868,-4843.1028,0.000431,10]
[403863440,1769607060880,-1304.07,0.000431,30]
[403863441,1769607060891,-253.0,0.000431,41]
[403863442,1769607060904,-201.902198,0.000431,24]
[403863443,1769607060914,-160.71079692,0.000431,2]
[403863444,1769607060924,-8173.82373325,0.000431,2]
[403863445,1769607060936,-388.0,0.00043102,2]
[403863446,1769607060947,-1000.0,0.00043107,14]
[403863447,1769607060958,-1000.0,0.00043108,14]
[403863448,1769607060971,-1000.0,0.0004311,14]
[403863449,1769607060984,-778.02286202,0.0004311,17]
[403863450,1769607060996,-10000.0,0.0004311,2]
[403863451,1769607061009,-1000.0,0.00043112,14]
[403863452,1769607061022,-1000.0,0.00043117,14]
[403863453,1769607061035,-1000.0,0.00043131,14]
[403863454,1769607061048,-1000.0,0.00043133,14]
[403863455,1769607061061,-387.0,0.00043135,2]
[403863456,1769607061073,-197.17585614,0.00043145,2]
[403863457,1769607061084,-281.98695942,0.00043145,14]
[403863458,1769607061096,-500.0,0.00043151,120]
[403863459,1769607061110,-445.63915891,0.00043151,120]
[403863460,1769607061121,-388.0,0.00043155,2]
[403863461,1769607061134,-1000.0,0.00043162,14]
[403863462,1769607061146,-1000.0,0.00043162,14]
[403863463,1769607061157,-387.0,0.00043163,2]
[403863464,1769607061169,-1000.0,0.00043163,14]
[403863465,1769607061182,-388.0,0.00043172,2]
[403863466,1769607061193,-1000.0,0.00043176,14]
[403863467,1769607061204,-500.0,0.00043181,7]
[403863468,1769607061215,-161182.6158689,0.00043182,2]
[403863469,1769607061227,-1000.0,0.0004319,14]
[403863470,1769607061238,-1000.0,0.00043197,14]
[403863471,1769607061250,-151.0,0.00043197,120]
[403863472,1769607061390,-151.0,0.00043197,120]
[403863473,1769607061401,-151.0,0.00043197,120]
[403863474,1769607061412,-298.56144985,0.00043197,30]
[403863475,1769607061422,-700.0,0.00043199,60]
[403863476,1769607061433,-158.0,0.00043199,14]
[403863477,1769607061443,-152.0,0.00043199,14]
[403863478,1769607061453,-151.0,0.00043199,14]
[403863479,1769607061463,-165.0,0.00043199,14]
[403863480,1769607061474,-152.0,0.00043199,14]
[403863481,1769607061485,-158.0,0.00043199,14]
[403863482,1769607061495,-165.0,0.00043199,14]
[403863483,1769607061506,-151.0,0.00043199,14]
[403863484,1769607061517,-152.0,0.00043199,14]
[403863485,1769607061527,-165.0,0.00043199,14]
[403863486,1769607061538,-151.0,0.00043199,14]
[403863487,1769607061549,-152.0,0.00043199,14]
[403863488,1769607061559,-165.0,0.00043199,14]
[403863489,1769607061569,-155.0,0.00043199,14]
[403863490,1769607061580,-151.0,0.00043199,14]
[403863491,1769607061590,-152.0,0.00043199,14]
[403863492,1769607061600,-155.0,0.00043199,14]
[403863493,1769607061610,-165.0,0.00043199,14]
[403863494,1769607061620,-151.0,0.00043199,14]
[403863495,1769607061634,-151.0,0.00043199,14]
[403863496,1769607061644,-151.0,0.00043199,14]
[403863497,1769607061655,-151.0,0.00043199,14]
[403863498,1769607061665,-152.0,0.00043199,14]
[403863499,1769607061676,-151.0,0.00043199,14]
[403863500,1769607061686,-151.0,0.00043199,14]
[403863501,1769607061697,-155.0,0.00043199,14]
[403863502,1769607061707,-152.0,0.00043199,14]
[403863503,1769607061718,-151.0,0.00043199,14]
[403863504,1769607061729,-151.0,0.00043199,14]
[403863505,1769607061739,-155.0,0.00043199,14]
[403863506,1769607061749,-152.0,0.00043199,14]
[403863507,1769607061759,-151.0,0.00043199,14]
[403863508,1769607061769,-151.0,0.00043199,14]
[403863509,1769607061780,-155.0,0.00043199,14]
[403863510,1769607061792,-165.0,0.00043199,14]
[403863511,1769607061804,-152.0,0.00043199,14]
[403863512,1769607061815,-151.0,0.00043199,14]
[403863513,1769607061826,-151.0,0.00043199,14]
[403863514,1769607061837,-155.0,0.00043199,14]
[403863515,1769607061847,-165.0,0.00043199,14]
[403863516,1769607061856,-152.0,0.00043199,14]
[403863517,1769607061867,-151.0,0.00043199,14]
[403863518,1769607061878,-151.0,0.00043199,14]
[403863519,1769607061889,-155.0,0.00043199,14]
[403863520,1769607061899,-165.0,0.00043199,14]
[403863521,1769607061909,-152.0,0.00043199,14]
[403863522,1769607061919,-151.0,0.00043199,14]
[403863523,1769607061929,-151.0,0.00043199,14]
[403863524,1769607061939,-155.0,0.00043199,14]
[403863525,1769607061949,-168.35235479,0.00043199,14]
[403863526,1769607061959,-152.0,0.00043199,14]
[403863527,1769607061968,-151.0,0.00043199,14]
[403863528,1769607061978,-155.0,0.00043199,14]
[403863529,1769607061988,-151.0,0.00043199,14]
[403863530,1769607061997,-152.0,0.00043199,14]
[403863531,1769607062007,-151.0,0.00043199,14]
[403863532,1769607062016,-155.0,0.00043199,14]
[403863533,1769607062026,-151.0,0.00043199,14]
[403863534,1769607062036,-152.0,0.00043199,14]
[403863535,1769607062045,-151.0,0.00043199,14]
[403863536,1769607062056,-219.15698301,0.00043199,14]
[403863537,1769607062066,-151.0,0.00043199,14]
[403863538,1769607062076,-152.0,0.00043199,14]
[403863539,1769607062087,-151.0,0.00043199,14]
[403863540,1769607062097,-151.0,0.00043199,14]
[403863541,1769607062108,-152.0,0.00043199,14]
[403863542,1769607062119,-152.50126102,0.00043199,14]
[403863543,1769607062129,-151.0,0.00043199,14]
[403863544,1769607062140,-170.60351524,0.00043199,14]
[403863545,1769607062152,-200.0,0.00043199,120]
[403863546,1769607062163,-1757.66145,0.00043199,120]
[403863547,1769607062173,-4046.5,0.00043199,120]
[403863548,1769607062183,-1184.79281839,0.00043199,30]
[403863549,1769607062194,-50000.0,0.000432,55]
[403863550,1769607062204,-1547712.24734275,0.000432,120]
[403863551,1769607062214,-200.0,0.000432,7]
[403863552,1769607062224,-166.0,0.000432,120]
[403863553,1769607062235,-166.0,0.000432,120]
[403863554,1769607062245,-151.0,0.000432,30]
[403863555,1769607062255,-151.0,0.000432,120]
[403863556,1769607062265,-151.0,0.000432,60]
[403863557,1769607062275,-151.0,0.000432,120]
[403863558,1769607062284,-151.0,0.000432,120]
[403863559,1769607062294,-194.602541,0.000432,120]
[403863560,1769607062304,-152.470527,0.000432,120]
[403863561,1769607062314,-151.0,0.000432,120]
[403863562,1769607062324,-151.0,0.000432,120]
[403863563,1769607062334,-151.0,0.000432,120]
[403863564,1769607062344,-151.0,0.000432,120]
[403863565,1769607062354,-151.0,0.000432,120]
[403863566,1769607062363,-151.0,0.000432,120]
[403863567,1769607062373,-151.0,0.000432,120]
[403863568,1769607062383,-151.0,0.000432,120]
[403863569,1769607062393,-151.0,0.000432,120]
[403863570,1769607062403,-151.0,0.000432,120]
[403863571,1769607062413,-151.0,0.000432,120]
[403863572,1769607062423,-151.0,0.000432,120]
[403863573,1769607062433,-151.634628,0.000432,120]
[403863574,1769607062442,-188.040807,0.000432,120]
[403863575,1769607062452,-151.0,0.000432,120]
[403863576,1769607062462,-151.0,0.000432,120]
[403863577,1769607062472,-151.0,0.000432,120]
[403863578,1769607062483,-151.0,0.000432,120]
[403863579,1769607062493,-151.0,0.000432,120]
[403863580,1769607062504,-151.0,0.000432,120]
[403863581,1769607062514,-159.903943,0.000432,120]
[403863582,1769607062524,-292.964197,0.000432,120]
[403863583,1769607062534,-292.964197,0.000432,120]
[403863584,1769607062544,-151.0,0.000432,30]
[403863585,1769607062554,-292.964197,0.000432,120]
[403863586,1769607062563,-292.964197,0.000432,120]
[403863587,1769607062574,-151.0,0.000432,120]
[403863588,1769607062584,-152.455983,0.000432,120]
[403863589,1769607062593,-151.0,0.000432,30]
[403863590,1769607062603,-151.0,0.000432,120]
[403863591,1769607062613,-151.0,0.000432,120]
[403863592,1769607062623,-151.0,0.000432,30]
[403863593,1769607062634,-151.0,0.000432,120]
[403863594,1769607062646,-151.0,0.000432,120]
[403863595,1769607062657,-151.0,0.000432,120]
[403863596,1769607062667,-151.0,0.000432,60]
[403863597,1769607062677,-151.0,0.000432,120]
[403863598,1769607062688,-151.0,0.000432,120]
[403863599,1769607062698,-151.0,0.000432,120]
[403863600,1769607062708,-151.0,0.000432,60]
[403863601,1769607062719,-151.0,0.000432,120]
[403863602,1769607062729,-155.939796,0.000432,120]
[403863603,1769607062739,-151.0,0.000432,120]
[403863604,1769607062749,-375.677026,0.000432,120]
[403863605,1769607062759,-375.677026,0.000432,120]
[403863606,1769607062770,-375.677026,0.000432,120]
[403863607,1769607062781,-375.677026,0.000432,120]
[403863608,1769607062793,-260.779498,0.000432,120]
[403863609,1769607062803,-151.0,0.000432,120]
[403863610,1769607062814,-151.0,0.000432,120]
[403863611,1769607062826,-151.0,0.000432,25]
[403863612,1769607062836,-151.0,0.000432,25]
[403863613,1769607062846,-151.0,0.000432,25]
[403863614,1769607062856,-151.0,0.000432,25]
[403863615,1769607062867,-244.370558,0.000432,120]
[403863616,1769607062877,-151.0,0.000432,120]
[403863617,1769607062887,-151.0,0.000432,120]
[403863618,1769607062897,-151.0,0.000432,120]
[403863619,1769607062906,-151.0,0.000432,120]
[403863620,1769607062916,-151.0,0.000432,120]
[403863621,1769607062925,-151.0,0.000432,120]
[403863622,1769607062936,-151.0,0.000432,120]
[403863623,1769607062946,-153.166585,0.000432,30]
[403863624,1769607062955,-156.380883,0.000432,120]
[403863625,1769607062966,-156.380883,0.000432,120]
[403863626,1769607062979,-156.380883,0.000432,120]
[403863627,1769607062989,-156.380883,0.000432,120]
[403863628,1769607062999,-151.0,0.000432,120]
[403863629,1769607063009,-151.0,0.000432,120]
[403863630,1769607063018,-151.0,0.000432,120]
[403863631,1769607063028,-151.0,0.000432,120]
[403863632,1769607063037,-151.0,0.000432,120]
[403863633,1769607063048,-151.0,0.000432,120]
[403863634,1769607063058,-2670.0,0.000432,7]
[403863635,1769607063068,-151.0,0.000432,120]
[403863636,1769607063078,-151.0,0.000432,120]
[403863637,1769607063088,-155.456994,0.000432,120]
[403863638,1769607063098,-151.0,0.000432,120]
[403863639,1769607063108,-151.0,0.000432,120]
[403863640,1769607063117,-151.0,0.000432,120]
[403863641,1769607063126,-151.0,0.000432,120]
[403863642,1769607063136,-151.0,0.000432,120]
[403863643,1769607063146,-151.0,0.000432,120]
[403863644,1769607063157,-151.0,0.000432,120]
[403863645,1769607063167,-151.0,0.000432,120]
[403863646,1769607063176,-151.0,0.000432,120]
[403863647,1769607063186,-151.0,0.000432,120]
[403863648,1769607063196,-152.838277,0.000432,120]
[403863649,1769607063207,-151.0,0.000432,120]
[403863650,1769607063217,-151.0,0.000432,120]
[403863651,1769607063227,-151.0,0.000432,120]
[403863652,1769607063236,-151.0,0.000432,120]
[403863653,1769607063246,-151.0,0.000432,120]
[403863654,1769607063256,-151.0,0.000432,120]
[403863655,1769607063265,-151.0,0.000432,120]
[403863656,1769607063276,-352.256092,0.000432,15]
[403863657,1769607063285,-151.0,0.000432,120]
[403863658,1769607063296,-352.256092,0.000432,15]
[403863659,1769607063306,-151.0,0.000432,120]
[403863660,1769607063317,-151.0,0.000432,120]
[403863661,1769607063328,-352.256092,0.000432,15]
[403863662,1769607063339,-278.685634,0.000432,120]
[403863663,1769607063348,-151.0,0.000432,120]
[403863664,1769607063358,-352.256092,0.000432,15]
[403863665,1769607063367,-278.685634,0.000432,120]
[403863666,1769607063376,-151.0,0.000432,120]
[403863667,1769607063386,-177.196603,0.000432,120]
[403863668,1769607063395,-532.480892,0.000432,120]
[403863669,1769607063406,-278.685634,0.000432,120]
[403863670,1769607063415,-177.196603,0.000432,120]
[403863671,1769607063425,-532.480892,0.000432,120]
[403863672,1769607063434,-278.685634,0.000432,120]
[403863673,1769607063444,-177.196603,0.000432,120]
[403863674,1769607063453,-532.480892,0.000432,120]
[403863675,1769607063462,-252.445334,0.000432,120]
[403863676,1769607063471,-177.196603,0.000432,120]
[403863677,1769607063482,-252.445334,0.000432,120]
[403863678,1769607063493,-151.0,0.000432,120]
[403863679,1769607063502,-252.445334,0.000432,120]
[403863680,1769607063511,-252.445334,0.000432,120]
[403863681,1769607063521,-151.0,0.000432,120]
[403863682,1769607063531,-151.0,0.000432,120]
[403863683,1769607063540,-151.0,0.000432,120]
[403863684,1769607063549,-151.0,0.000432,120]
[403863685,1769607063559,-151.0,0.000432,120]
[403863686,1769607063569,-151.0,0.000432,120]
[403863687,1769607063580,-151.0,0.000432,120]
[403863688,1769607063590,-151.0,0.000432,120]
[403863689,1769607063920,-515.706892,0.000432,120]
[403863690,1769607063936,-515.706892,0.000432,120]
[403863691,1769607063945,-515.706892,0.000432,120]
[403863692,1769607063955,-151.0,0.000432,120]
[403863693,1769607063964,-515.706892,0.000432,120]
[403863694,1769607063974,-192.840789,0.000432,120]
[403863695,1769607063988,-192.840789,0.000432,120]
[403863696,1769607063998,-151.0,0.000432,120]
[403863697,1769607064007,-192.840789,0.000432,120]
[403863698,1769607064016,-192.840789,0.000432,120]
[403863699,1769607064025,-151.0,0.000432,120]
[403863700,1769607064035,-388.152615,0.000432,120]
[403863701,1769607064044,-388.152615,0.000432,120]
[403863702,1769607064054,-388.152615,0.000432,120]
[403863703,1769607064063,-388.152615,0.000432,120]
[403863704,1769607064073,-151.0,0.000432,120]
[403863705,1769607064083,-830.076122,0.000432,120]
[403863706,1769607064093,-151.0,0.000432,120]
[403863707,1769607064104,-830.076122,0.000432,120]
[403863708,1769607064116,-830.076122,0.000432,120]
[403863709,1769607064127,-830.076122,0.000432,120]
[403863710,1769607064138,-151.0,0.000432,120]
[403863711,1769607064148,-151.0,0.000432,120]
[403863712,1769607064158,-151.0,0.000432,120]
[403863713,1769607064167,-151.0,0.000432,120]
[403863714,1769607064177,-151.0,0.000432,120]
[403863715,1769607064187,-161.789256,0.000432,120]
[403863716,1769607064197,-151.0,0.000432,120]
[403863717,1769607064207,-151.0,0.000432,120]
[403863718,1769607064216,-151.0,0.000432,120]
[403863719,1769607064226,-151.0,0.000432,120]
[403863720,1769607064236,-151.0,0.000432,120]
[403863721,1769607064246,-257.591515,0.000432,120]
[403863722,1769607064255,-594.225977,0.000432,120]
[403863723,1769607064265,-257.591515,0.000432,120]
[403863724,1769607064275,-594.225977,0.000432,120]
[403863725,1769607064285,-257.591515,0.000432,120]
[403863726,1769607064295,-594.225977,0.000432,120]
[403863727,1769607064305,-257.591515,0.000432,120]
[403863728,1769607064315,-594.225977,0.000432,120]
[403863729,1769607064325,-151.0,0.000432,120]
[403863730,1769607064335,-215.401807,0.000432,120]
[403863731,1769607064345,-290.465774,0.000432,7]
[403863732,1769607064356,-215.401807,0.000432,120]
[403863733,1769607064367,-215.401807,0.000432,120]
[403863734,1769607064376,-215.401807,0.000432,120]
[403863735,1769607064386,-290.465774,0.000432,7]
[403863736,1769607064396,-290.465774,0.000432,7]
[403863737,1769607064406,-290.465774,0.000432,7]
[403863738,1769607064416,-172.214516,0.000432,120]
[403863739,1769607064425,-151.0,0.000432,120]
[403863740,1769607064435,-256.382205,0.000432,120]
[403863741,1769607064444,-172.214516,0.000432,120]
[403863742,1769607064454,-227.703215,0.000432,120]
[403863743,1769607064463,-256.382205,0.000432,120]
[403863744,1769607064472,-172.214516,0.000432,120]
[403863745,1769607064481,-151.0,0.000432,120]
[403863746,1769607064491,-151.0,0.000432,14]
[403863747,1769607064501,-172.214516,0.000432,120]
[403863748,1769607064510,-151.0,0.000432,30]
[403863749,1769607064520,-256.382205,0.000432,120]
[403863750,1769607064529,-151.0,0.000432,120]
[403863751,1769607064539,-151.0,0.000432,30]
[403863752,1769607064550,-256.382205,0.000432,120]
[403863753,1769607064559,-275.854793,0.000432,30]
[403863754,1769607064570,-151.0,0.000432,120]
[403863755,1769607064579,-751.683482,0.000432,120]
[403863756,1769607064590,-751.683482,0.000432,120]
[403863757,1769607064600,-336.643787,0.000432,120]
[403863758,1769607064610,-751.683482,0.000432,120]
[403863759,1769607064620,-336.643787,0.000432,120]
[403863760,1769607064630,-751.683482,0.000432,120]
[403863761,1769607064642,-336.643787,0.000432,120]
[403863762,1769607064654,-336.643787,0.000432,120]
[403863763,1769607064663,-243.713436,0.000432,28]
[403863764,1769607064673,-243.713436,0.000432,28]
[403863765,1769607064683,-243.713436,0.000432,28]
[403863766,1769607064694,-243.713436,0.000432,28]
[403863767,1769607064704,-151.0,0.000432,120]
[403863768,1769607064715,-174.33788,0.000432,120]
[403863769,1769607064724,-411.608667,0.000432,120]
[403863770,1769607064734,-411.608667,0.000432,120]
[403863771,1769607064743,-174.33788,0.000432,120]
[403863772,1769607064753,-151.0,0.000432,120]
[403863773,1769607064762,-411.608667,0.000432,120]
[403863774,1769607064772,-174.33788,0.000432,120]
[403863775,1769607064783,-151.0,0.000432,120]
[403863776,1769607064793,-411.608667,0.000432,120]
[403863777,1769607064804,-174.33788,0.000432,120]
[403863778,1769607064814,-151.0,0.000432,120]
[403863779,1769607064824,-151.0,0.000432,120]
[403863780,1769607064833,-151.0,0.000432,120]
[403863781,1769607064843,-151.0,0.000432,120]
[403863782,1769607064852,-151.0,0.000432,120]
[403863783,1769607064864,-151.0,0.000432,120]
[403863784,1769607064876,-464.205389,0.000432,120]
[403863785,1769607064886,-464.205389,0.000432,120]
[403863786,1769607064895,-200.925052,0.000432,120]
[403863787,1769607064906,-151.0,0.000432,120]
[403863788,1769607064915,-464.205389,0.000432,120]
[403863789,1769607064926,-200.925052,0.000432,120]
[403863790,1769607064935,-157.68017,0.000432,120]
[403863791,1769607064945,-464.205389,0.000432,120]
[403863792,1769607064955,-151.0,0.000432,120]
[403863793,1769607064964,-200.925052,0.000432,120]
[403863794,1769607064973,-151.0,0.000432,120]